Cogmind - Beta 16 @@@ ROGUE MODE // 2025.11.12 @ 18:53:31 Player: guru-sr Result: Destroyed by OQ-5CH(R) with Subdweller Machine Gun Performance ------------- Evolutions (0) 0 Regions Visited (2) 400 Robots Destroyed (34) 170 Value Destroyed (791) 791 Prototype IDs (2) 40 Alien Tech Used (0) 0 Bonus (0) 0 TOTAL SCORE: 1401 Bonus ------- None Cogmind --------- Core Integrity 0/250 Matter 209/300 Energy 76/250 System Corruption 0% Temperature Cool (5) Movement Rolling (140) Ox3 Location -10/Subcaves Parts ------- > --- POWER (1) -------- Ion Engine > --- PROPULSION (2) --- Improved Treads Subdweller Monowheel > --- UTILITY (2) ------ High-capacity Storage Unit Makeshift Light Armor Plating > --- WEAPON (2) ------- Subdweller Beam Cannon Slug Cannon > --- INVENTORY (20) --- Improved Treads Improved Treads Improved Treads Subdweller Monowheel Subdweller Optics Sensor Array Signal Interpreter Seismic Detector Utility Shielding Utility Shielding Makeshift Kinetic Plating Riot Gun Heavy Riot Gun Beam Rifle Beam Rifle Subdweller Shrapnel Launcher Multitool Makeshift Sword Peak State ------------ > --- POWER ------------ Ion Engine > --- PROPULSION ------- Improved Treads Subdweller Monowheel > --- UTILITY ---------- High-capacity Storage Unit Makeshift Light Armor Plating > --- WEAPON ----------- Subdweller Beam Cannon Slug Cannon > --- INVENTORY -------- Improved Treads Improved Treads Improved Treads Subdweller Monowheel Subdweller Optics Sensor Array Signal Interpreter Seismic Detector Utility Shielding Utility Shielding Makeshift Kinetic Plating Riot Gun Heavy Riot Gun Beam Rifle Beam Rifle Subdweller Machine Gun Subdweller Shrapnel Launcher Multitool Makeshift Sword [Rating: 20] Favorites ----------- Power Ion Engine Engine Ion Engine Propulsion Improved Treads Treads Improved Treads Wheel Subdweller Monowheel Utility High-capacity Storage Unit Device Improved Terrain Scanner Storage High-capacity Storage Unit Protection Light Armor Plating Weapon Subdweller Machine Gun Energy Gun Medium Laser Energy Cannon Subdweller Beam Cannon Ballistic Gun Subdweller Machine Gun Ballistic Cannon Slug Cannon Launcher Grenade Launcher Special Weapon Mining Laser Impact Weapon Maul Slashing Weapon Makeshift Sword Build | -11 -10 -10 ------- Run | Yrd Mat Sub Slots Evolved . | . . . Power . | . . . Propulsion . | . . . Utility . | . . . Weapon . | . . . Parts Attached 37 | 6 10 21 Power 5 | 1 1 3 Engine 5 | 1 1 3 Core . | . . . Reactor . | . . . Propulsion 8 | 2 2 4 Treads 4 | 2 2 . Leg . | . . . Wheel 4 | . . 4 Hover . | . . . Flight . | . . . Utility 7 | 1 3 3 Device 2 | . 1 1 Storage 3 | 1 2 . Processor . | . . . Hackware . | . . . Protection 2 | . . 2 Artifact . | . . . Weapon 17 | 2 4 11 Energy Gun 6 | 1 2 3 Energy Cannon 2 | . . 2 Ballistic Gun 4 | 1 . 3 Ballistic Cannon 1 | . . 1 Launcher 1 | . 1 . Special Weapon 1 | . 1 . Impact Weapon 1 | . . 1 Slashing Weapon 1 | . . 1 Piercing Weapon . | . . . Special Melee Weapon . | . . . Unidentified Prototypes . | . . . Parts Lost 3 | . . 3 Power 1 | . . 1 Propulsion . | . . . Utility 2 | . . 2 Weapon . | . . . Highest Loss Streak 1 | . . 1 To Critical Strikes . | . . . Average Backups 17 | 3 13 19 Power 1 | . 1 1 Propulsion 3 | 1 1 3 Utility 6 | 1 6 7 Weapon 5 | . 3 6 Tool/Special . | . . . Unused Backups 26 | 1 6 19 Power 1 | . 1 . Propulsion 6 | 1 1 4 Utility 12 | . 2 10 Weapon 6 | . 2 4 Tool/Special 1 | . . 1 Average Slot Usage (%) 99 | . 98 99 Engine 13 | . 14 13 Treads 19 | . 28 15 Wheel 8 | . . 12 Device 5 | . 12 2 Storage 14 | . 14 14 Protection 7 | . . 11 Energy Gun 7 | . 12 4 Energy Cannon 6 | . . 9 Ballistic Gun 13 | . 14 13 Peak Build Rating 20 | 6 14 20 Average Rating 13 | 3 10 15 On Entrance 6 | . 6 14 Avg Prop Armor Cover (%) 10 | . . 10 Naked Turns . | . . . Heaviest Build 61 | 14 51 61 Greatest Support 43 | 40 43 43 Greatest Overweight (x) 4 | 4 1 3 Average Overweight (x) 1 | 3 . 2 Largest Inventory Capacity 20 | 8 20 20 Average Capacity 18 | 7 16 20 Most Carried 20 | 6 20 20 Average Carried 17 | 4 13 19 Final Capacity 20 | 8 20 20 Final Carried 20 | 5 20 18 Class Distribution -------------------- 73% | Mutant 26% | Scavenger-Mutant Dominant Class ---------------- Mutant | -10/Materials Mutant | -10/Subcaves Resources | -11 -10 -10 ----------- Run | Yrd Mat Sub Matter Collected 1140 | 265 158 717 Remotely . | . . . Salvage Created 1033 | 89 194 750 Parts 86 | 14 21 51 Haulers Intercepted 1 | . 1 . Recyclers Shooed . | . . . Parts Field Recycled . | . . . Retrieved Matter . | . . . Parts Self-Destructed 15 | . . 15 Prevented . | . . . Parts Restored . | . . . Kills | -11 -10 -10 ------- Run | Yrd Mat Sub Combat Hostiles Destroyed 28 | . 7 21 Guns 12 | . 4 8 Cannons 3 | . . 3 AOE 12 | . 3 9 Classes Destroyed 11 | 2 5 4 Tunneler 2 | 2 . . Hauler 1 | . 1 . Recycler 1 | 1 . . Mechanic 1 | . 1 . Watcher 1 | . 1 . Swarmer 13 | . 6 7 Grunt 3 | . 1 2 Sentry 1 | . . 1 Artisan 1 | . . 1 Cobbler 1 | . . 1 Subdweller 11 | . . 11 Best Kill Streak 4 | 2 4 4 Combat Bots Only 4 | . 4 4 Max Kills in Single Turn 2 | 1 2 2 Gunslinging . | . . . Exploded 2 | . 2 2 Melee . | . . . Uniques/NPCs Destroyed . | . . . Combat | -11 -10 -10 -------- Run | Yrd Mat Sub Hostile Shots Fired 122 | . 30 92 Missed 38 | . 8 30 Hits 84 | . 22 62 Projectile 84 | . 22 62 AOE 2 | . . 2 Damage Taken 1401 | . 185 1216 Core 250 | . 30 220 Absorbed by Shields . | . . . Core Remaining (%) 100 | 100 . . Volleys Fired 103 | 8 26 69 Largest 2 | 2 2 2 Hottest 140 | 70 100 140 Shots Fired 197 | 16 46 135 Gun 147 | 16 36 95 Cannon 26 | . . 26 Launcher 18 | . 4 14 Special 6 | . 6 . Kinetic 82 | 8 20 54 Thermal 96 | 8 22 66 Explosive 18 | . 4 14 Electromagnetic 1 | . . 1 Robot Hit Streak 18 | 9 14 18 Robot Miss Streak 2 | 2 2 2 Penetration Max . | . . . Secondary Targets 2 | . 2 . Max Gunslinging Chain 1 | . 1 . Shots Hit Robots 126 | 11 24 91 Core Hits 60 | 4 16 40 Critical Kills 1 | . . 1 Critical Parts Destroyed 1 | . . 1 Critical Strikes 9 | . 1 8 Burn 6 | . 1 5 Meltdown 1 | . . 1 Destroy 2 | . . 2 Melee Attacks 5 | . . 5 Impact 2 | . . 2 Slashing 3 | . . 3 Piercing . | . . . Sneak Attacks . | . . . Combat Hostiles . | . . . Follow-up Attacks . | . . . Damage Inflicted 3134 | 156 504 2474 Guns 1711 | 156 338 1217 Cannons 469 | . . 469 Explosions 954 | . 166 788 Melee . | . . . Ramming . | . . . Kinetic 1021 | 67 185 769 Thermal 1147 | 89 153 905 Explosive 954 | . 166 788 Electromagnetic 12 | . . 12 Impact . | . . . Slashing . | . . . Piercing . | . . . Highest Corruption . | . . . Average Corruption . | . . . Corruption Purged . | . . . Corruption Blocked . | . . . Overload Shots . | . . . Overflow Damage 32 | . 25 7 Projectiles 7 | . . 7 Explosions 25 | . 25 . Melee . | . . . Knockbacks 1 | . . 1 Impact . | . . . Kinetic 1 | . . 1 Secondary . | . . . Self-Inflicted Damage 30 | . . 30 Shots 1 | . . 1 Rammed . | . . . Targets Rammed . | . . . Kicked . | . . . Crushed . | . . . Highest Temperature 63 | 27 63 30 Average Temperature 16 | 12 22 9 Received Heat Transfer 189 | . . 189 Siege Activations . | . . . Martial Activations . | . . . Shielding Activations . | . . . Robots Disrupted . | . . . Combat Hostiles . | . . . Robots Corrupted . | . . . Combat Hostiles . | . . . Parts Fried . | . . . Impact Corruptions . | . . . Robots Melted 1 | . . 1 Combat Hostiles 1 | . . 1 Parts Melted 5 | . 1 4 Heat Transferred 2960 | 259 518 2183 Parts Sabotaged . | . . . Parts Stolen . | . . . Parts Stripped . | . . . Power Chain Reactions . | . . . Alert | -11 -10 -10 ------- Run | Yrd Mat Sub Maximum Alert Level . | . . . Low Security (%) 100 | 100 100 . Level 1 . | . . . Level 2 . | . . . Level 3 . | . . . Level 4 . | . . . Level 5 . | . . . High Security . | . . . Max Security . | . . . Peak Influence 95 | 5 95 . Initial . | . . . Average 21 | . 24 . Influence Increases 535 | 15 255 265 Destroy 0b10 Robot/C 340 | . 140 200 Destroy 0b10 Robot/NC 30 | 15 15 . Destroy Leader 54 | . 34 20 Successful Hack 17 | . 17 . Disable Machine 15 | . 15 . Destroy Structure 19 | . 19 . Lose Combat Pursuer 60 | . 15 45 Influence Decreases 535 | 15 255 265 Time Decay 535 | 15 255 265 Squads Dispatched 1 | . 1 . Investigation . | . . . Extermination . | . . . Reinforcement 1 | . 1 . Assault . | . . . Garrison . | . . . Intercept . | . . . Searches Triggered . | . . . Construction Impeded . | . . . Haulers Reinforced . | . . . Active Scanning Responses . | . . . Cargo Convoy Interrupts . | . . . Stealth | -11 -10 -10 --------- Run | Yrd Mat Sub Distress Signals 3 | . 3 . Communications Jammed . | . . . Distress Signals . | . . . Times Spotted 45 | . 19 26 Peak Tracking Total 6 | . 6 6 Tactical Retreats 5 | . 1 4 Traps | -11 -10 -10 ------- Run | Yrd Mat Sub Traps Triggered 4 | . . 4 Indirectly . | . . . Trap Hack Attempts . | . . . Triggered . | . . . Disarmed . | . . . Reprogrammed . | . . . Reused . | . . . Traps Extracted . | . . . Installed . | . . . Triggered . | . . . Machines | -11 -10 -10 ---------- Run | Yrd Mat Sub Machines Disabled 1 | . 1 . Max in Single Turn 1 | . 1 . Machines Repaired . | . . . Machines Dismantled . | . . . Machines Sabotaged . | . . . Overloaded Fab Kills . | . . . Hacking | -11 -10 -10 --------- Run | Yrd Mat Sub Machines Accessed 5 | . 4 1 Terminals 4 | . 4 . Fabricators . | . . . Repair Stations . | . . . Recycling Units . | . . . Scanalyzers . | . . . Garrison Access . | . . . Total Hacks 21 | . 17 4 Successful 13 | . 9 4 Failed 8 | . 8 . Catastrophic . | . . . Database Lockouts . | . . . Manual 7 | . 7 . Terminals 17 | . 17 . Fabricators . | . . . Repair Stations . | . . . Recycling Units . | . . . Scanalyzers . | . . . Garrison Access . | . . . Terminal Hacks 11 | . 7 4 Record 4 | . . 4 Prototype ID Bank 1 | . 1 . Terminal Index 1 | . 1 . Locate Traps 3 | . 3 . Zone Layout 2 | . 2 . Fabricator Hacks . | . . . Repair Station Hacks . | . . . Recycling Unit Hacks . | . . . Scanalyzer . | . . . Garrison Access Hacks . | . . . Unauthorized Hacks 2 | . 2 . Terminals 2 | . 2 . Botnet 2 | . 2 . Fabricators . | . . . Repair Stations . | . . . Recycling Units . | . . . Scanalyzers . | . . . Garrison Access . | . . . Data Cores Recovered . | . . . Used . | . . . Hacking Detections 4 | . 4 . Full Trace Events . | . . . Feedback Events . | . . . Feedback Blocked . | . . . Robot Schematics Acquired . | . . . Robots Built . | . . . Authchips . | . . . Time . | . . . Total Robot Build Rating . | . . . Part Schematics Acquired . | . . . Parts Built . | . . . Authchips . | . . . Time . | . . . Total Part Build Rating . | . . . Part Studies Acquired . | . . . Parts Repaired . | . . . Time . | . . . Parts Recycled . | . . . Recycled Matter . | . . . Retrieved Matter . | . . . Retrieved Components . | . . . Parts Scanalyzed . | . . . Part Schematics Acquired . | . . . Parts Damaged . | . . . Bothacking | -11 -10 -10 ------------ Run | Yrd Mat Sub Used RIF Installer . | . . . Robots Hacked . | . . . Non-combat . | . . . Combat . | . . . Robot Hacks Applied . | . . . Relay Couplers Released . | . . . Fabnet Peak Effective % . | . . . Robots Rewired . | . . . Allies Hacked . | . . . Hacks Repelled . | . . . Allies | -11 -10 -10 -------- Run | Yrd Mat Sub Total Allies . | . . . Largest Group . | . . . Highest-Rated Group . | . . . Highest-Rated Ally . | . . . Total Orders . | . . . Ally Attacks . | . . . Total Damage . | . . . Kills . | . . . Allies Corrupted . | . . . Allies Melted . | . . . Intel | -11 -10 -10 ------- Run | Yrd Mat Sub Active Infowar (turns) 1497 | . 1040 457 Optics 13 | . . 13 Terrain 1484 | . 1040 444 Robot Analysis Total . | . . . Derelict Logs Recovered . | . . . Drone Launches . | . . . Drone Recoveries . | . . . Exploration | -11 -10 -10 ------------- Run | Yrd Mat Sub Turns Passed 3756 | 186 1171 2399 Spaces Moved 2092 | 61 550 1481 Core 52 | 52 . . Treads 608 | 9 550 49 Legs . | . . . Wheels 1432 | . . 1432 Hover . | . . . Flight . | . . . Fastest Speed 50 | 50 160 130 Average Speed 149 | 220 182 134 Slowest Speed 250 | 250 240 240 Overloaded Moves . | . . . Propulsion Burnouts . | . . . Robots Hopped . | . . . Potential Cave-ins . | . . . Cave-ins Triggered . | . . . Exploration Rate (%) 54 | 4 79 81 Regions Visited 2 Branch Regions 1 Pre-discovered Areas 1 | . . 1 Known Exits Taken . | . . . Unknown Exits Taken 2 | 1 1 . Scrap Searched 5 | . . 5 Spaces Dug 4 | . 4 . Terrain Destroyed 81 | . 25 56 Melee . | . . . Projectile 8 | . 4 4 AOE 73 | . 21 52 Terrain Rammed . | . . . Walls Destroyed . | . . . Machines Disabled . | . . . Actions | -11 -10 -10 --------- Run | Yrd Mat Sub Total 2489 | 96 660 1733 Wait 133 | 7 28 98 Move 2090 | 60 549 1481 Hop . | . . . Pick Up 51 | 10 25 16 Fast Attach 9 | 6 . 3 Attach 4 | . 1 3 Detach . | . . . Swap 53 | . 18 35 Drop 41 | 5 13 23 Fire 103 | 8 26 69 Melee 5 | . . 5 Ram . | . . . Kick . | . . . Crush . | . . . Escape Stasis . | . . . Rewire . | . . . Trap . | . . . Miscellaneous . | . . . Route ------- -11/Scrapyard -10/Materials (discovered 4 exits: [*Mat x2] / [*Min] / *Sub) -10/Subcaves (discovered 2 exits: [*Mat x2]) History --------- Turn | Location | Event 5 | -11/Scrapyard | Discovered new exit (range 16) 187 | -11/Scrapyard | Entered Materials 301 | -10/Materials | Build established: Mutant 608 | -10/Materials | Discovered new exit (range 6) 707 | -10/Materials | Discovered new exit (range 17) 1336 | -10/Materials | Discovered new exit (range 9) 1339 | -10/Materials | Discovered new exit (range 6) 1358 | -10/Materials | Entered Subcaves 1359 | -10/Subcaves | Approached by a straggling Scientist 1406 | -10/Subcaves | Shifting Twisted Machinery released Hvy. Riot Gun 1786 | -10/Subcaves | Ambushed by angry Subdweller bent on revenge 1821 | -10/Subcaves | Build established: Scavenger-Mutant 1855 | -10/Subcaves | Discovered new exit (range 11) 1999 | -10/Subcaves | A swath of the cavern ceiling suddenly collapsed 2496 | -10/Subcaves | Disturbed a concealed Subdweller 2804 | -10/Subcaves | Build established: Mutant 2832 | -10/Subcaves | Visited Clippyterm 2835 | -10/Subcaves | Learned location of Deep Caves (-7) 2835 | -10/Subcaves | Learned Factory trap positions 2974 | -10/Subcaves | Ambushed by Subdwellers from Twisted Machinery 2982 | -10/Subcaves | Core integrity fell below 50% 3248 | -10/Subcaves | Core integrity fell below 20% 3336 | -10/Subcaves | Shifting Twisted Machinery released Slug Cannon 3400 | -10/Subcaves | Discovered new exit (range 6) 3726 | -10/Subcaves | Ambushed by Subdweller buried in earth 3757 | -10/Subcaves | Destroyed by OQ-5CH(R) with Subdweller Machine Gun Last Messages --------------- 03502_ Dropped Sub. Monowheel. 03533_ Acquired 24 matter. 03590_ Dropped Sub. Machine Gun. 03592_ Acquired Sub. Laser. 03594_ 5U-V1I(R) suffers critical hit (Burn). 03614_ 5U-V1I(R) suffers critical hit (Destroy). 03627_ Destroyed Scrap Shield. 03627_ 5U-V1I(R) destroyed. 03629_ I1-OSB(O) collects matter. 03644_ Dropped Sub. Laser. 03645_ Acquired Sub. Beam Cannon. 03653_ Dropped Grenade Launcher. 03655_ Acquired Sub. Shrapnel Launcher. 03724_ Ion Engine destroyed. 03726_ Sub. Machine Gun shoots sparks and powers down. [Achievement: Do Not Disturb] 03727_ OQ-5CH(R): "ARGHSUB!" 03755_ Dropped Broken Sub. Machine Gun. 03756_ OQ-5CH(R) knocked back. Map ----- +----------------------------------------------------+ | ???????????####??????????????????????????????????? | | ??####????## ##???##########????????????????????? | | ??# ###### ##?## ## #????????????????????? | | ??#""# ### #????????????????????? | | ??#""" #?????????????????????? | | ###""" ###### ####??????###????????????? | | """" ##???## ! [ ##???????## ###??????#???? | | #????# ] ##??????# ###### ##??? | | ## "##????## ######## #??? | | ######??????### [ [ #???? | | ##?????????????####### #### | | #?????????????????### | | ##?????????????????# ] | | #??????????????????# ## ## #?? | | #?????????????????## """"""# ### ##?? | | ##??????????????### "## #????????? | | #??????????????# ## ##????????? | | ##??????????????## ### # ##?????????? | | #???????????????# #?# ##"??????????? | | ##???????????????# #?##" #? ??????????? | | #????????????????# #??# " "" ?????????? | | #????????????????# #??##### "" ??????? | | #????????????????### R ##### # ]! ??????? | | #??????????????????# ## # [ ?????? | | ????????????????#### #? ????? | | ????????????????# ##@ #? "" ?????? | | ???????????????# #### #?##"#### ?????? | | ???????????????# ##??######???##???#"""??????? | | ???????????????## ##???????????????????????????? | | ????????????????####?????????????????????????????? | | #????????????????????????????????????????????????? | | #????????????????????????????????????????????????? | | ##???????????????????????????????????????????????? | | #???????????????????????????????????????????????? | | #???????????????????????????????????????????????? | | ##???????????????????????????????????????????????? | | #????????????????????????????????????????????????? | | ?????????????????????????????????????????????????? | | ?????????????????????????????????????????????????? | | ?????????????????????????????????????????????????? | | #????????????????????????????????????????????????? | | ####?????????????????????????????????????????????? | | ##????????????????????????????????????????????? | | " ##???????????????????????????????????????????? | | " """##??????????????????????????????????????????? | | """""#??????????????????????????????????????????? | | """"""#??????????????????????????????????????????? | | """""#??????????????????????????????????????????? | | """""#???????????????????????????????#####??????? | | """""" ???????????????????????????????# #??????? | +----------------------------------------------------+ Best States ------------- Heat Dissipation 25 Energy Generation 10 Energy Capacity 250 Matter Stores 300 Matter Capacity 300 Sight Range 21 Terrain Scan Range 16 Terrain Scan Density 10 Armor Coverage 150 Evasion (%) 40 Recoil Reduction 2 Item Schematics ----------------- None Robot Schematics ------------------ None Fabricated ------------ Nothing Repaired ---------- Nothing Studied --------- None Alien Tech Used ----------------- None Achievements -------------- Do Not Disturb Challenges ------------ None Game ------ Seed SalvagingLaunchPropulsion Manual? 0 Play Time 00:51:41 Cumulative 11.0 hours Start 2025.11.12 @ 17:56:57 End 2025.11.12 @ 18:53:31 Sessions 1 Manual Loads 0 Difficulty Rogue Special Mode None Game No. 9 Rogue 9 Adventurer 0 Explorer 0 Win Type - Total 1 Types 1/0/0/0/0/0/0/0/0/0 Lore% 7 Gallery% 14 Achievement% 24 Wizard Run 0 Options --------- Layout 1 ASCII 0 Keyboard 0 Movement Mouse Keybinds 0 Fullscreen 1 Font 24/Smallcaps Map View 50x35 Zoom Use 0% Tactical HUD 1 Map Filters NONE Filters NONE Steam 1 RUN: bb0f099c-63ba-4945-b768-227b586ee8fb